[Event "Titled Tuesday Blitz August 31 2021"]
[White "Krivonosov, Oleg"]
[Black "Ovchinnikov, Vsevolod"]
[WhiteFideId "11600349"]
[BlackFideId "24176842"]
[WhiteElo "2469"]
[BlackElo "2376"]
[Result "1-0"]
[Round "10"]
[TimeControl "180+1"]
[Date "2021.08.31"]
[WhiteClock "0:00:30"]
[BlackClock "0:00:04"]

1. Nf3 {[%clk 0:03:00]}  Nf6 {[%clk 0:02:59]} 2. c4 {[%clk 0:03:00]}  g6 {[%clk 0:03:00]} 3. Nc3 {[%clk 0:02:59]}  d5 {[%clk 0:03:00]} 4. cxd5 {[%clk 0:02:58]}  Nxd5 {[%clk 0:03:01]} 5. e4 {[%clk 0:02:58]}  Nb6 {[%clk 0:03:00]} 6. h3 {[%clk 0:02:57]}  Bg7 {[%clk 0:03:00]} 7. d4 {[%clk 0:02:56]}  Nc6 {[%clk 0:02:58]} 8. Be3 {[%clk 0:02:53]}  O-O {[%clk 0:02:58]} 9. Be2 {[%clk 0:02:51]}  f5 {[%clk 0:02:58]} 10. exf5 {[%clk 0:02:50]}  Bxf5 {[%clk 0:02:58]} 11. O-O {[%clk 0:02:44]}  h6 {[%clk 0:02:52]} 12. Rc1 {[%clk 0:02:42]}  g5 {[%clk 0:02:51]} 13. d5 {[%clk 0:02:32]}  Ne5 {[%clk 0:02:45]} 14. Nxe5 {[%clk 0:02:30]}  Bxe5 {[%clk 0:02:46]} 15. Bd4 {[%clk 0:02:29]}  Bf4 {[%clk 0:02:30]} 16. Be3 {[%clk 0:02:28]}  Bxe3 {[%clk 0:02:29]} 17. fxe3 {[%clk 0:02:27]}  a6 {[%clk 0:02:23]} 18. Qd4 {[%clk 0:02:25]}  Bg6 {[%clk 0:01:21]} 19. e4 {[%clk 0:02:12]}  Kh7 {[%clk 0:01:16]} 20. e5 {[%clk 0:02:02]}  Rxf1+ {[%clk 0:00:40]} 21. Rxf1 {[%clk 0:01:59]}  Qh8 {[%clk 0:00:40]} 22. Bd3 {[%clk 0:01:54]}  Rf8 {[%clk 0:00:39]} 23. Bxg6+ {[%clk 0:01:49]}  Kxg6 {[%clk 0:00:40]} 24. Re1 {[%clk 0:01:36]}  Rf4 {[%clk 0:00:15]} 25. Qc5 {[%clk 0:01:30]}  Qd8 {[%clk 0:00:14]} 26. g3 {[%clk 0:01:15]}  Rf5 {[%clk 0:00:14]} 27. Kg2 {[%clk 0:01:12]}  Nd7 {[%clk 0:00:14]} 28. Qd4 {[%clk 0:01:03]}  h5 {[%clk 0:00:04]} 29. Qd3 {[%clk 0:00:55]}  g4 {[%clk 0:00:03]} 30. hxg4 {[%clk 0:00:48]}  hxg4 {[%clk 0:00:04]} 31. Qd4 {[%clk 0:00:47]}  Qh8 {[%clk 0:00:03]} 32. Qxg4+ {[%clk 0:00:45]}  Rg5 {[%clk 0:00:04]} 33. Qxd7 {[%clk 0:00:40]}  Rxe5 {[%clk 0:00:04]} 34. Qg4+ {[%clk 0:00:37]}  Kf7 {[%clk 0:00:03]} 35. Qf4+ {[%clk 0:00:32]}  Qf6 {[%clk 0:00:03]} 36. Rxe5 {[%clk 0:00:30]}  Qxf4 {[%clk 0:00:04]} 1-0


[Site "https://www.chess.com"]

[Event "Titled Tuesday Blitz August 31 2021"]
[White "Kuzubov, Yuriy"]
[Black "Maly, Alexey"]
[WhiteFideId "14112906"]
[BlackFideId "14103184"]
[WhiteElo "2564"]
[BlackElo "2250"]
[Result "1/2-1/2"]
[Round "10"]
[TimeControl "180+1"]
[Date "2021.08.31"]
[WhiteClock "0:00:04"]
[BlackClock "0:00:05"]

1. e4 {[%clk 0:03:00]}  c6 {[%clk 0:02:59]} 2. Nc3 {[%clk 0:03:00]}  d5 {[%clk 0:02:59]} 3. Nf3 {[%clk 0:03:00]}  Bg4 {[%clk 0:02:59]} 4. h3 {[%clk 0:03:00]}  Bxf3 {[%clk 0:03:00]} 5. Qxf3 {[%clk 0:03:01]}  e6 {[%clk 0:03:00]} 6. d3 {[%clk 0:03:02]}  Nf6 {[%clk 0:03:00]} 7. Bd2 {[%clk 0:03:01]}  Qb6 {[%clk 0:03:00]} 8. Rb1 {[%clk 0:02:59]}  d4 {[%clk 0:02:57]} 9. Ne2 {[%clk 0:02:53]}  c5 {[%clk 0:02:50]} 10. g4 {[%clk 0:02:44]}  Nc6 {[%clk 0:02:50]} 11. g5 {[%clk 0:02:44]}  Nd7 {[%clk 0:02:50]} 12. a3 {[%clk 0:02:37]}  Be7 {[%clk 0:02:40]} 13. Bg2 {[%clk 0:02:35]}  O-O {[%clk 0:02:38]} 14. h4 {[%clk 0:02:30]}  f5 {[%clk 0:02:25]} 15. Qg3 {[%clk 0:02:19]}  Nde5 {[%clk 0:02:05]} 16. f4 {[%clk 0:02:06]}  Ng4 {[%clk 0:02:04]} 17. exf5 {[%clk 0:01:56]}  exf5 {[%clk 0:02:04]} 18. Bf3 {[%clk 0:01:55]}  Rae8 {[%clk 0:01:43]} 19. Bxg4 {[%clk 0:01:55]}  fxg4 {[%clk 0:01:43]} 20. Qxg4 {[%clk 0:01:54]}  c4 {[%clk 0:01:16]} 21. O-O {[%clk 0:01:49]}  Bc5 {[%clk 0:01:12]} 22. Kh2 {[%clk 0:01:36]}  cxd3 {[%clk 0:01:07]} 23. cxd3 {[%clk 0:01:35]}  Qb3 {[%clk 0:01:07]} 24. Rbd1 {[%clk 0:00:45]}  Qxd3 {[%clk 0:01:03]} 25. Nc1 {[%clk 0:00:44]}  Qc2 {[%clk 0:01:01]} 26. Qf3 {[%clk 0:00:35]}  Kh8 {[%clk 0:00:55]} 27. Qb3 {[%clk 0:00:20]}  Qf5 {[%clk 0:00:54]} 28. Qd3 {[%clk 0:00:18]}  Qg4 {[%clk 0:00:53]} 29. Qf3 {[%clk 0:00:16]}  Qf5 {[%clk 0:00:47]} 30. Nd3 {[%clk 0:00:16]}  Bd6 {[%clk 0:00:43]} 31. Kg2 {[%clk 0:00:15]}  Re4 {[%clk 0:00:40]} 32. Rde1 {[%clk 0:00:15]}  Rfe8 {[%clk 0:00:39]} 33. Rxe4 {[%clk 0:00:14]}  Rxe4 {[%clk 0:00:40]} 34. Re1 {[%clk 0:00:11]}  Rxe1 {[%clk 0:00:39]} 35. Bxe1 {[%clk 0:00:12]}  h6 {[%clk 0:00:35]} 36. Bd2 {[%clk 0:00:11]}  Ne7 {[%clk 0:00:32]} 37. Nf2 {[%clk 0:00:07]}  Ng6 {[%clk 0:00:29]} 38. Qe4 {[%clk 0:00:05]}  Nxh4+ {[%clk 0:00:27]} 39. Kf1 {[%clk 0:00:04]}  Qxe4 {[%clk 0:00:23]} 40. Nxe4 {[%clk 0:00:05]}  Nf5 {[%clk 0:00:23]} 41. Ke2 {[%clk 0:00:05]}  h5 {[%clk 0:00:20]} 42. Kf3 {[%clk 0:00:04]}  Kg8 {[%clk 0:00:17]} 43. Nf2 {[%clk 0:00:03]}  g6 {[%clk 0:00:16]} 44. Ke4 {[%clk 0:00:03]}  Kf7 {[%clk 0:00:16]} 45. Kd5 {[%clk 0:00:04]}  Bb8 {[%clk 0:00:15]} 46. a4 {[%clk 0:00:03]}  h4 {[%clk 0:00:13]} 47. a5 {[%clk 0:00:04]}  a6 {[%clk 0:00:12]} 48. b4 {[%clk 0:00:03]}  Bc7 {[%clk 0:00:12]} 49. Kc5 {[%clk 0:00:03]}  Ke7 {[%clk 0:00:11]} 50. Kd5 {[%clk 0:00:03]}  Kd7 {[%clk 0:00:11]} 51. Bc1 {[%clk 0:00:02]}  Bd6 {[%clk 0:00:11]} 52. Bd2 {[%clk 0:00:02]}  Be7 {[%clk 0:00:10]} 53. Nh3 {[%clk 0:00:02]}  Bd6 {[%clk 0:00:10]} 54. Nf2 {[%clk 0:00:03]}  Bb8 {[%clk 0:00:09]} 55. Nh3 {[%clk 0:00:03]}  Bc7 {[%clk 0:00:09]} 56. Nf2 {[%clk 0:00:03]}  Bd8 {[%clk 0:00:08]} 57. Nh3 {[%clk 0:00:03]}  Be7 {[%clk 0:00:08]} 58. Nf2 {[%clk 0:00:03]}  Bf8 {[%clk 0:00:09]} 59. Nh3 {[%clk 0:00:04]}  Bg7 {[%clk 0:00:08]} 60. Ng1 {[%clk 0:00:04]}  Ne3+ {[%clk 0:00:08]} 61. Ke4 {[%clk 0:00:03]}  Nc4 {[%clk 0:00:07]} 62. Be1 {[%clk 0:00:03]}  Nd6+ {[%clk 0:00:06]} 63. Kd5 {[%clk 0:00:03]}  Nf5 {[%clk 0:00:07]} 64. Bd2 {[%clk 0:00:03]}  Bf8 {[%clk 0:00:06]} 65. Nh3 {[%clk 0:00:03]}  Be7 {[%clk 0:00:05]} 66. Ng1 {[%clk 0:00:03]}  Bd6 {[%clk 0:00:05]} 67. Nh3 {[%clk 0:00:04]}  Be7 {[%clk 0:00:05]} 1/2-1/2


[Site "https://www.chess.com"]

[Event "Titled Tuesday Blitz August 31 2021"]
[White "LEGENYA1998"]
[Black "Dzhaparov, Medet"]
[BlackFideId "13803689"]
[WhiteElo "2420"]
[BlackElo "1702"]
[Result "1/2-1/2"]
[Round "10"]
[TimeControl "180+1"]
[Date "2021.08.31"]
[WhiteClock "0:00:56"]
[BlackClock "0:00:10"]

1. b3 {[%clk 0:02:59]}  Nf6 {[%clk 0:02:58]} 2. Bb2 {[%clk 0:02:59]}  g6 {[%clk 0:02:58]} 3. Nf3 {[%clk 0:02:58]}  Bg7 {[%clk 0:02:58]} 4. g3 {[%clk 0:02:58]}  O-O {[%clk 0:02:59]} 5. Bg2 {[%clk 0:02:59]}  d6 {[%clk 0:02:59]} 6. O-O {[%clk 0:02:59]}  Nbd7 {[%clk 0:03:00]} 7. c4 {[%clk 0:02:59]}  e5 {[%clk 0:02:54]} 8. d3 {[%clk 0:02:58]}  Nc5 {[%clk 0:02:38]} 9. Qc2 {[%clk 0:02:54]}  a5 {[%clk 0:02:34]} 10. Nbd2 {[%clk 0:02:53]}  Nh5 {[%clk 0:02:29]} 11. h3 {[%clk 0:02:52]}  f5 {[%clk 0:02:28]} 12. Rad1 {[%clk 0:02:41]}  Ne6 {[%clk 0:02:26]} 13. e4 {[%clk 0:02:36]}  Nc5 {[%clk 0:02:08]} 14. Rfe1 {[%clk 0:02:35]}  Bd7 {[%clk 0:01:59]} 15. d4 {[%clk 0:02:34]}  Nxe4 {[%clk 0:01:55]} 16. dxe5 {[%clk 0:02:27]}  Nxd2 {[%clk 0:00:45]} 17. Rxd2 {[%clk 0:02:19]}  Bc6 {[%clk 0:00:39]} 18. exd6 {[%clk 0:02:11]}  Bxb2 {[%clk 0:00:40]} 19. dxc7 {[%clk 0:02:02]}  Qxc7 {[%clk 0:00:35]} 20. Qxb2 {[%clk 0:02:03]}  Rfe8 {[%clk 0:00:28]} 21. Rxe8+ {[%clk 0:01:57]}  Rxe8 {[%clk 0:00:29]} 22. Re2 {[%clk 0:01:57]}  Rd8 {[%clk 0:00:27]} 23. Qe5 {[%clk 0:01:55]}  Qxe5 {[%clk 0:00:17]} 24. Rxe5 {[%clk 0:01:55]}  Rd1+ {[%clk 0:00:16]} 25. Kh2 {[%clk 0:01:55]}  Nf6 {[%clk 0:00:16]} 26. Ng5 {[%clk 0:01:49]}  Rd2 {[%clk 0:00:14]} 27. Bxc6 {[%clk 0:01:40]}  bxc6 {[%clk 0:00:15]} 28. Rxa5 {[%clk 0:01:40]}  Rxf2+ {[%clk 0:00:14]} 29. Kg1 {[%clk 0:01:40]}  Rb2 {[%clk 0:00:14]} 30. Ra8+ {[%clk 0:01:29]}  Kg7 {[%clk 0:00:13]} 31. Ra7+ {[%clk 0:01:29]}  Kh6 {[%clk 0:00:12]} 32. h4 {[%clk 0:01:23]}  Kh5 {[%clk 0:00:12]} 33. Rf7 {[%clk 0:01:22]}  Ne4 {[%clk 0:00:10]} 34. Nxe4 {[%clk 0:01:07]}  fxe4 {[%clk 0:00:11]} 35. Re7 {[%clk 0:01:07]}  Rxa2 {[%clk 0:00:07]} 36. Rxe4 {[%clk 0:01:06]}  Rb2 {[%clk 0:00:05]} 37. Re3 {[%clk 0:00:58]}  Kg4 {[%clk 0:00:03]} 38. Kf1 {[%clk 0:00:58]}  h6 {[%clk 0:00:02]} 39. Ke1 {[%clk 0:00:59]}  c5 {[%clk 0:00:02]} 40. Kd1 {[%clk 0:00:58]}  Rg2 {[%clk 0:00:02]} 41. Re5 {[%clk 0:00:57]}  Rxg3 {[%clk 0:00:02]} 42. Kc2 {[%clk 0:00:56]}  Rg2+ {[%clk 0:00:03]} 43. Kc3 {[%clk 0:00:55]}  Rg3+ {[%clk 0:00:04]} 44. Kb2 {[%clk 0:00:55]}  Rg2+ {[%clk 0:00:04]} 45. Ka3 {[%clk 0:00:56]}  Rg3 {[%clk 0:00:05]} 46. Rxc5 {[%clk 0:00:56]}  Kxh4 {[%clk 0:00:06]} 47. Rc6 {[%clk 0:00:56]}  h5 {[%clk 0:00:05]} 48. Rc8 {[%clk 0:00:55]}  g5 {[%clk 0:00:05]} 49. c5 {[%clk 0:00:56]}  Rc3 {[%clk 0:00:05]} 50. Kb4 {[%clk 0:00:55]}  Rc1 {[%clk 0:00:05]} 51. c6 {[%clk 0:00:55]}  Kg3 {[%clk 0:00:05]} 52. Kb5 {[%clk 0:00:54]}  h4 {[%clk 0:00:05]} 53. c7 {[%clk 0:00:55]}  g4 {[%clk 0:00:05]} 54. Kb6 {[%clk 0:00:55]}  h3 {[%clk 0:00:05]} 55. Rg8 {[%clk 0:00:55]}  Rxc7 {[%clk 0:00:05]} 56. Kxc7 {[%clk 0:00:55]}  h2 {[%clk 0:00:06]} 57. Rh8 {[%clk 0:00:54]}  Kg2 {[%clk 0:00:06]} 58. b4 {[%clk 0:00:54]}  h1=Q {[%clk 0:00:07]} 59. Rxh1 {[%clk 0:00:53]}  Kxh1 {[%clk 0:00:08]} 60. b5 {[%clk 0:00:54]}  g3 {[%clk 0:00:08]} 61. b6 {[%clk 0:00:55]}  g2 {[%clk 0:00:09]} 62. b7 {[%clk 0:00:55]}  g1=Q {[%clk 0:00:09]} 63. b8=Q {[%clk 0:00:55]}  Qg3+ {[%clk 0:00:09]} 64. Kc8 {[%clk 0:00:56]}  Qxb8+ {[%clk 0:00:10]} 65. Kxb8 {[%clk 0:00:56]} 1/2-1/2


[Site "https://www.chess.com"]

[Event "Titled Tuesday Blitz August 31 2021"]
[White "Leenhouts, Koen"]
[Black "Wong, Yinn Long"]
[WhiteFideId "1008439"]
[BlackFideId "5707684"]
[WhiteElo "2409"]
[BlackElo "2016"]
[Result "0-1"]
[Round "10"]
[TimeControl "180+1"]
[Date "2021.08.31"]
[WhiteClock "0:00:01"]
[BlackClock "0:00:03"]

1. d4 {[%clk 0:03:00]}  e6 {[%clk 0:02:59]} 2. c4 {[%clk 0:02:58]}  Nf6 {[%clk 0:02:58]} 3. g3 {[%clk 0:02:57]}  Bb4+ {[%clk 0:02:52]} 4. Bd2 {[%clk 0:02:57]}  Be7 {[%clk 0:02:52]} 5. Bg2 {[%clk 0:02:56]}  O-O {[%clk 0:02:53]} 6. Nf3 {[%clk 0:02:53]}  d5 {[%clk 0:02:53]} 7. Qc2 {[%clk 0:02:50]}  c6 {[%clk 0:02:53]} 8. O-O {[%clk 0:02:50]}  Nbd7 {[%clk 0:02:53]} 9. Rd1 {[%clk 0:02:49]}  Ne4 {[%clk 0:02:53]} 10. Nc3 {[%clk 0:02:45]}  Nd6 {[%clk 0:02:50]} 11. c5 {[%clk 0:02:42]}  Nf5 {[%clk 0:02:49]} 12. e4 {[%clk 0:02:40]}  dxe4 {[%clk 0:02:50]} 13. Nxe4 {[%clk 0:02:39]}  Nf6 {[%clk 0:02:48]} 14. Bc3 {[%clk 0:02:36]}  Nd5 {[%clk 0:02:32]} 15. Ne5 {[%clk 0:02:33]}  Qc7 {[%clk 0:02:22]} 16. b4 {[%clk 0:02:24]}  b6 {[%clk 0:02:16]} 17. Rac1 {[%clk 0:02:16]}  Bb7 {[%clk 0:02:14]} 18. a3 {[%clk 0:02:13]}  Rfd8 {[%clk 0:02:10]} 19. Bb2 {[%clk 0:02:11]}  Rac8 {[%clk 0:02:08]} 20. Qe2 {[%clk 0:02:01]}  Qb8 {[%clk 0:02:00]} 21. h4 {[%clk 0:02:00]}  a5 {[%clk 0:01:55]} 22. bxa5 {[%clk 0:01:40]}  b5 {[%clk 0:01:56]} 23. Qh5 {[%clk 0:01:27]}  g6 {[%clk 0:01:52]} 24. Qe2 {[%clk 0:01:27]}  Qa7 {[%clk 0:01:48]} 25. Ng5 {[%clk 0:01:13]}  Bxg5 {[%clk 0:01:38]} 26. hxg5 {[%clk 0:01:14]}  Qxa5 {[%clk 0:01:37]} 27. Be4 {[%clk 0:01:10]}  Nde7 {[%clk 0:01:19]} 28. Kg2 {[%clk 0:01:07]}  Qa4 {[%clk 0:01:20]} 29. Bc2 {[%clk 0:00:59]}  Qa5 {[%clk 0:01:15]} 30. Bb3 {[%clk 0:00:56]}  Nd5 {[%clk 0:01:11]} 31. Rh1 {[%clk 0:00:54]}  b4 {[%clk 0:01:12]} 32. Nxf7 {[%clk 0:00:50]}  Re8 {[%clk 0:00:24]} 33. Nd6 {[%clk 0:00:41]}  Nxd6 {[%clk 0:00:22]} 34. cxd6 {[%clk 0:00:42]}  Qd8 {[%clk 0:00:15]} 35. Qe5 {[%clk 0:00:40]}  c5 {[%clk 0:00:13]} 36. f3 {[%clk 0:00:30]}  bxa3 {[%clk 0:00:11]} 37. Rxh7 {[%clk 0:00:29]}  Ne3+ {[%clk 0:00:09]} 38. Kf2 {[%clk 0:00:24]}  Ng4+ {[%clk 0:00:06]} 39. fxg4 {[%clk 0:00:23]}  Rf8+ {[%clk 0:00:07]} 40. Ke2 {[%clk 0:00:15]}  Ba6+ {[%clk 0:00:06]} 41. Kd2 {[%clk 0:00:14]}  Rf2+ {[%clk 0:00:02]} 42. Ke3 {[%clk 0:00:07]}  Re2+ {[%clk 0:00:02]} 43. Kf3 {[%clk 0:00:05]}  Rxe5 {[%clk 0:00:03]} 44. Rch1 {[%clk 0:00:04]}  Qf8+ {[%clk 0:00:03]} 45. Kg2 {[%clk 0:00:03]}  Re2+ {[%clk 0:00:04]} 46. Kh3 {[%clk 0:00:03]}  Kxh7 {[%clk 0:00:04]} 47. Bxe6 {[%clk 0:00:03]}  Rxe6 {[%clk 0:00:03]} 48. d7 {[%clk 0:00:03]}  Rd8 {[%clk 0:00:03]} 49. Bxa3 {[%clk 0:00:02]}  Re2 {[%clk 0:00:03]} 50. Bxc5 {[%clk 0:00:01]}  Qf7 {[%clk 0:00:03]} 0-1


[Site "https://www.chess.com"]

[Event "Titled Tuesday Blitz August 31 2021"]
[White "Lisik, Valery"]
[Black "Chernomordik, Pavel"]
[WhiteFideId "4101596"]
[BlackFideId "2804530"]
[WhiteElo "2556"]
[BlackElo "2256"]
[Result "1-0"]
[Round "10"]
[TimeControl "180+1"]
[Date "2021.08.31"]
[WhiteClock "0:00:08"]
[BlackClock "0:00:01"]

1. d4 {[%clk 0:02:48]}  g6 {[%clk 0:02:59]} 2. e4 {[%clk 0:02:47]}  Bg7 {[%clk 0:02:58]} 3. Nc3 {[%clk 0:02:47]}  d6 {[%clk 0:02:58]} 4. h4 {[%clk 0:02:46]}  h6 {[%clk 0:02:55]} 5. h5 {[%clk 0:02:43]}  g5 {[%clk 0:02:55]} 6. g3 {[%clk 0:02:43]}  Nf6 {[%clk 0:02:42]} 7. f3 {[%clk 0:02:39]}  c6 {[%clk 0:02:37]} 8. Bg2 {[%clk 0:02:39]}  b5 {[%clk 0:02:34]} 9. a3 {[%clk 0:02:38]}  Nbd7 {[%clk 0:02:29]} 10. Nge2 {[%clk 0:02:36]}  Qb6 {[%clk 0:02:28]} 11. Be3 {[%clk 0:02:35]}  a5 {[%clk 0:02:22]} 12. g4 {[%clk 0:02:34]}  Bb7 {[%clk 0:02:17]} 13. Qd2 {[%clk 0:02:27]}  b4 {[%clk 0:02:14]} 14. Nd1 {[%clk 0:02:26]}  O-O {[%clk 0:02:07]} 15. O-O {[%clk 0:02:23]}  Ba6 {[%clk 0:02:05]} 16. Rf2 {[%clk 0:02:18]}  Qb5 {[%clk 0:01:57]} 17. Ng3 {[%clk 0:02:17]}  e6 {[%clk 0:01:55]} 18. Bf1 {[%clk 0:02:06]}  Qb7 {[%clk 0:01:55]} 19. Bxa6 {[%clk 0:02:05]}  Rxa6 {[%clk 0:01:54]} 20. axb4 {[%clk 0:02:05]}  axb4 {[%clk 0:01:54]} 21. Rxa6 {[%clk 0:02:05]}  Qxa6 {[%clk 0:01:53]} 22. Qxb4 {[%clk 0:02:06]}  c5 {[%clk 0:01:50]} 23. Qa3 {[%clk 0:01:56]}  Qc6 {[%clk 0:01:40]} 24. Ne2 {[%clk 0:01:45]}  Ra8 {[%clk 0:01:38]} 25. Qd3 {[%clk 0:01:42]}  Ra1 {[%clk 0:01:35]} 26. Rf1 {[%clk 0:01:42]}  d5 {[%clk 0:01:24]} 27. e5 {[%clk 0:01:37]}  Ne8 {[%clk 0:01:21]} 28. c3 {[%clk 0:01:35]}  Nc7 {[%clk 0:01:19]} 29. Nf2 {[%clk 0:01:25]}  Ra2 {[%clk 0:01:18]} 30. Qb1 {[%clk 0:01:23]}  Qa6 {[%clk 0:01:15]} 31. Nc1 {[%clk 0:01:19]}  Ra1 {[%clk 0:01:11]} 32. Qd3 {[%clk 0:01:11]}  Qb7 {[%clk 0:01:01]} 33. Qc2 {[%clk 0:01:05]}  Nb5 {[%clk 0:00:54]} 34. Nb3 {[%clk 0:01:05]}  Ra2 {[%clk 0:00:52]} 35. Nd1 {[%clk 0:00:43]}  Na3 {[%clk 0:00:46]} 36. Na5 {[%clk 0:00:35]}  Qb5 {[%clk 0:00:40]} 37. Qb3 {[%clk 0:00:35]}  Qxb3 {[%clk 0:00:34]} 38. Nxb3 {[%clk 0:00:35]}  Nc4 {[%clk 0:00:35]} 39. Bc1 {[%clk 0:00:32]}  cxd4 {[%clk 0:00:33]} 40. cxd4 {[%clk 0:00:32]}  Ra6 {[%clk 0:00:26]} 41. Nd2 {[%clk 0:00:29]}  Ndb6 {[%clk 0:00:24]} 42. b3 {[%clk 0:00:28]}  Nxd2 {[%clk 0:00:23]} 43. Bxd2 {[%clk 0:00:28]}  Ra2 {[%clk 0:00:22]} 44. Bb4 {[%clk 0:00:26]}  Rc2 {[%clk 0:00:20]} 45. Bc5 {[%clk 0:00:25]}  Nd7 {[%clk 0:00:20]} 46. b4 {[%clk 0:00:25]}  f6 {[%clk 0:00:18]} 47. exf6 {[%clk 0:00:20]}  Bxf6 {[%clk 0:00:18]} 48. Ne3 {[%clk 0:00:17]}  Rc3 {[%clk 0:00:17]} 49. Ng2 {[%clk 0:00:15]}  Nxc5 {[%clk 0:00:16]} 50. dxc5 {[%clk 0:00:16]}  Bd4+ {[%clk 0:00:16]} 51. Kh1 {[%clk 0:00:16]}  Rb3 {[%clk 0:00:15]} 52. f4 {[%clk 0:00:16]}  Rxb4 {[%clk 0:00:14]} 53. fxg5 {[%clk 0:00:16]}  hxg5 {[%clk 0:00:14]} 54. Rc1 {[%clk 0:00:17]}  Rc4 {[%clk 0:00:13]} 55. Rxc4 {[%clk 0:00:17]}  dxc4 {[%clk 0:00:13]} 56. c6 {[%clk 0:00:18]}  Be5 {[%clk 0:00:12]} 57. Ne3 {[%clk 0:00:17]}  c3 {[%clk 0:00:12]} 58. Kg2 {[%clk 0:00:18]}  Kf8 {[%clk 0:00:12]} 59. h6 {[%clk 0:00:16]}  Kg8 {[%clk 0:00:12]} 60. Kf3 {[%clk 0:00:16]}  Kh7 {[%clk 0:00:12]} 61. Ke4 {[%clk 0:00:17]}  Bf4 {[%clk 0:00:11]} 62. Kd3 {[%clk 0:00:15]}  Kxh6 {[%clk 0:00:11]} 63. Kxc3 {[%clk 0:00:13]}  Kg6 {[%clk 0:00:08]} 64. Nc4 {[%clk 0:00:13]}  Kf6 {[%clk 0:00:08]} 65. Kd3 {[%clk 0:00:12]}  Ke7 {[%clk 0:00:07]} 66. Ke4 {[%clk 0:00:11]}  Bc7 {[%clk 0:00:06]} 67. Kd4 {[%clk 0:00:09]}  Kf6 {[%clk 0:00:05]} 68. Nd2 {[%clk 0:00:07]}  Bb6+ {[%clk 0:00:03]} 69. Kc4 {[%clk 0:00:07]}  Ke5 {[%clk 0:00:03]} 70. Kb5 {[%clk 0:00:07]}  Bc7 {[%clk 0:00:03]} 71. Ka6 {[%clk 0:00:07]}  Kf4 {[%clk 0:00:02]} 72. Kb7 {[%clk 0:00:08]}  Be5 {[%clk 0:00:01]} 73. Nc4 {[%clk 0:00:08]} 1-0


[Site "https://www.chess.com"]

[Event "Titled Tuesday Blitz August 31 2021"]
[White "Manukyan, Artyom"]
[Black "Blomqvist, Erik"]
[WhiteFideId "13305786"]
[BlackFideId "1709437"]
[WhiteElo "2034"]
[BlackElo "2460"]
[Result "0-1"]
[Round "10"]
[TimeControl "180+1"]
[Date "2021.08.31"]
[WhiteClock "0:00:07"]
[BlackClock "0:00:04"]

1. e4 {[%clk 0:03:00]}  c5 {[%clk 0:02:59]} 2. Nc3 {[%clk 0:03:00]}  g6 {[%clk 0:02:59]} 3. d4 {[%clk 0:02:59]}  cxd4 {[%clk 0:02:59]} 4. Qxd4 {[%clk 0:03:00]}  Nf6 {[%clk 0:03:00]} 5. Nf3 {[%clk 0:03:01]}  Nc6 {[%clk 0:03:00]} 6. Qa4 {[%clk 0:03:01]}  d6 {[%clk 0:03:00]} 7. e5 {[%clk 0:03:02]}  dxe5 {[%clk 0:03:01]} 8. Nxe5 {[%clk 0:03:03]}  Bg7 {[%clk 0:03:01]} 9. Bb5 {[%clk 0:03:02]}  O-O {[%clk 0:03:00]} 10. Nxc6 {[%clk 0:03:01]}  bxc6 {[%clk 0:03:01]} 11. Bxc6 {[%clk 0:03:02]}  Rb8 {[%clk 0:03:01]} 12. O-O {[%clk 0:03:01]}  Qc7 {[%clk 0:02:59]} 13. Re1 {[%clk 0:02:53]}  Rb6 {[%clk 0:02:12]} 14. Bf3 {[%clk 0:02:30]}  Bb7 {[%clk 0:01:14]} 15. Bxb7 {[%clk 0:01:36]}  Qxb7 {[%clk 0:01:14]} 16. Qa3 {[%clk 0:01:22]}  Rb4 {[%clk 0:00:52]} 17. h3 {[%clk 0:00:47]}  Rc8 {[%clk 0:00:43]} 18. Bd2 {[%clk 0:00:16]}  Bf8 {[%clk 0:00:24]} 19. Nd1 {[%clk 0:00:16]}  Re4 {[%clk 0:00:18]} 20. Rxe4 {[%clk 0:00:10]}  Nxe4 {[%clk 0:00:18]} 21. Bc3 {[%clk 0:00:10]}  Qd7 {[%clk 0:00:10]} 22. Qa6 {[%clk 0:00:06]}  e6 {[%clk 0:00:07]} 23. Qd3 {[%clk 0:00:06]}  Qb7 {[%clk 0:00:06]} 24. Qf3 {[%clk 0:00:05]}  Qc6 {[%clk 0:00:05]} 25. a4 {[%clk 0:00:05]}  Bc5 {[%clk 0:00:03]} 26. a5 {[%clk 0:00:04]}  a6 {[%clk 0:00:03]} 27. Qf4 {[%clk 0:00:02]}  f5 {[%clk 0:00:02]} 28. Qe5 {[%clk 0:00:02]}  Nxc3 {[%clk 0:00:03]} 29. Qxc3 {[%clk 0:00:03]}  Qd5 {[%clk 0:00:02]} 30. Qd3 {[%clk 0:00:03]}  Qxd3 {[%clk 0:00:02]} 31. cxd3 {[%clk 0:00:04]}  Bd4 {[%clk 0:00:02]} 32. Nc3 {[%clk 0:00:04]}  Rb8 {[%clk 0:00:02]} 33. Ra2 {[%clk 0:00:04]}  Kf7 {[%clk 0:00:02]} 34. g3 {[%clk 0:00:03]}  Rb3 {[%clk 0:00:02]} 35. Nd1 {[%clk 0:00:03]}  Rxd3 {[%clk 0:00:02]} 36. Nc3 {[%clk 0:00:03]}  Bxc3 {[%clk 0:00:02]} 37. bxc3 {[%clk 0:00:04]}  Rxc3 {[%clk 0:00:02]} 38. Ra4 {[%clk 0:00:05]}  Rc5 {[%clk 0:00:02]} 39. Kg2 {[%clk 0:00:06]}  Kf6 {[%clk 0:00:03]} 40. h4 {[%clk 0:00:06]}  e5 {[%clk 0:00:03]} 41. Kf3 {[%clk 0:00:07]}  e4+ {[%clk 0:00:04]} 42. Kf4 {[%clk 0:00:07]}  Rc3 {[%clk 0:00:04]} 0-1


[Site "https://www.chess.com"]